bitfinex/quotes_ETHUSD_20251128
["timestamp","ask_amount","ask_price","bid_price","bid_amount"]
[1764369210418,1e-08,3034.4,3034.3,9.21146025]
[1764369210597,1e-08,3034.4,3034.3,9.34343011]
[1764369211424,1e-08,3034.4,3034.3,11.89643011]
[1764369211723,1e-08,3034.4,3034.3,16.97992372]
[1764369213015,1e-08,3034.4,3034.3,20.27557675]
[1764369214521,1e-08,3034.7,3034.6,1.319604]
[1764369214823,0.1875,3035.9,3034.8,1.319604]
[1764369214824,1e-08,3034.9,3034.8,1.319604]
[1764369215031,1e-08,3034.9,3034.8,10.12875287]
[1764369215211,1e-08,3034.9,3034.8,10.87690177]
[1764369215726,1e-08,3034.9,3034.8,11.008859]
[1764369216601,1e-08,3035.1,3035.0,1.303004]
[1764369216903,1e-08,3035.1,3035.0,6.79662624]
[1764369217103,1e-08,3035.1,3035.0,7.21677732]
[1764369217512,1e-08,3035.1,3035.0,12.30027093]
[1764369217905,1e-08,3035.1,3035.0,12.76487093]
[1764369219030,1e-08,3035.1,3035.0,19.70547193]
[1764369219199,1e-08,3035.1,3035.0,18.57030893]
[1764369223726,1e-08,3035.1,3035.0,12.43687093]
[1764369223910,1e-08,3035.1,3035.0,14.88787293]
[1764369227499,1e-08,3035.1,3035.0,12.76487093]
[1764369228634,1e-08,3035.1,3035.0,14.79464693]
[1764369230131,1e-08,3035.1,3035.0,12.76487093]
[1764369230352,1e-08,3035.1,3035.0,11.84127093]
[1764369230353,0.47090001,3035.1,3035.0,11.84127093]
[1764369231838,1e-08,3035.1,3035.0,12.31077093]
[1764369232847,0.47090001,3035.1,3035.0,10.44307682]
[1764369233049,0.47090001,3035.1,3035.0,10.65107682]
[1764369233252,0.47090001,3035.1,3035.0,11.37667093]
[1764369234113,1e-08,3035.1,3035.0,11.37667093]
[1764369236640,1e-08,3035.1,3035.0,11.84617093]
[1764369237208,1e-08,3035.1,3035.0,12.29927093]
[1764369237845,1e-08,3035.1,3035.0,12.43120901]
[1764369238339,1e-08,3035.1,3035.0,11.97810901]
[1764369238925,1e-08,3035.1,3035.0,12.43120901]
[1764369241442,0.47090001,3035.1,3035.0,6.0971154]
[1764369241753,0.93550001,3035.1,3035.0,6.4251154]
[1764369241954,0.47090001,3035.1,3035.0,6.4251154]
[1764369242253,1e-08,3035.1,3035.0,6.4251154]
[1764369242557,1e-08,3035.1,3035.0,6.8946154]
[1764369246047,1e-08,3035.1,3035.0,7.3601154]
[1764369247543,1e-08,3035.1,3035.0,7.3611154]
[1764369247947,0.1913,3037.2,3036.1,0.405504]
[1764369248147,0.76463802,3037.1,3037.0,0.505504]
[1764369248325,0.76463802,3037.1,3037.0,1.43909811]
[1764369248521,0.909,3037.1,3037.0,1.43909811]
[1764369249120,0.4505,3037.1,3037.0,2.16782108]
[1764369249317,0.4505,3037.1,3037.0,3.07682108]
[1764369249722,0.4505,3037.1,3037.0,6.36954416]
[1764369251851,0.4585,3037.4,3037.3,0.505504]
[1764369252050,0.4585,3037.9,3037.8,0.1]
[1764369252225,0.76311026,3037.9,3037.8,0.308]
[1764369252425,1.21361026,3037.9,3037.8,0.308]
[1764369254356,1.21361026,3037.9,3037.8,3.59985594]
[1764369256058,0.909,3037.9,3037.8,3.59985594]
[1764369257536,0.909,3037.9,3037.8,0.308]
[1764369257740,0.909,3037.9,3037.8,3.59985594]
[1764369260031,0.909,3037.9,3037.8,3.49985594]
[1764369262350,0.9241,3037.9,3037.8,3.49985594]
[1764369264756,0.9261,3037.9,3037.8,3.49985594]
[1764369266075,0.9261,3037.9,3037.2,0.1]
[1764369266243,1.73038384,3037.8,3037.3,0.208]
[1764369266443,0.30379039,3037.7,3037.3,0.208]
[1764369266647,0.4661,3037.4,3037.3,0.208]
[1764369267049,0.9397,3037.4,3037.3,0.208]
[1764369268368,0.9397,3037.4,3037.3,3.50039785]
[1764369271346,0.9397,3037.4,3037.3,3.60039785]
[1764369273145,0.04314684,3037.9,3037.4,0.72559411]
[1764369273451,0.30458692,3037.8,3037.7,0.1]
[1764369273843,1.24428692,3037.8,3037.7,0.1]
[1764369274268,1.24428692,3037.8,3037.6,0.1]
[1764369274461,0.1347,3037.5,3037.4,0.82559411]
[1764369274862,0.6083,3037.5,3037.4,0.82559411]
[1764369275057,0.91331582,3037.5,3037.4,0.82559411]
[1764369275273,0.91331582,3037.5,3037.4,4.11788356]
[1764369276347,0.91331582,3037.5,3037.4,4.15080645]
[1764369279255,0.91331582,3037.5,3037.4,4.11788356]
[1764369279458,0.43971582,3037.5,3037.4,4.01788356]
[1764369279861,0.93961582,3037.5,3037.4,4.11788356]
[1764369280483,0.9403983,3037.5,3037.4,4.11788356]
[1764369280650,0.9403983,3037.5,3037.4,4.15080645]
[1764369282367,0.4404983,3037.5,3037.4,4.15080645]
[1764369282677,0.7568983,3037.5,3037.4,4.11788356]
[1764369282985,0.7568983,3037.5,3037.4,4.35880645]
[1764369283190,1.2567983,3037.5,3037.4,4.35880645]
[1764369283756,1.2567983,3037.5,3037.4,4.32588356]
[1764369287897,0.3057983,3037.5,3037.4,4.32588356]
[1764369288063,0.7568983,3037.5,3037.4,4.32588356]
[1764369288465,1.2567983,3037.5,3037.4,4.32588356]
[1764369289366,0.3057983,3037.5,3037.4,4.84460645]
[1764369289700,0.7568983,3037.5,3037.4,5.22025597]
[1764369290087,1.2567983,3037.5,3037.4,5.22025597]
[1764369292079,0.7568983,3037.5,3037.4,5.22025597]
[1764369293500,0.75688182,3037.5,3037.4,5.22025597]
[1764369294113,0.30578182,3037.5,3037.4,5.70605597]
[1764369294290,0.30578182,3037.5,3037.4,6.58905997]
[1764369299620,0.002,3037.9,3037.5,0.405504]
[1764369299930,0.30584618,3037.8,3037.7,0.82559411]
[1764369300127,0.30585104,3037.8,3037.7,1.03359411]
[1764369300406,0.30585104,3037.8,3037.7,1.51939411]
[1764369300716,0.30585104,3037.8,3037.7,1.92489811]
[1764369300877,0.30585104,3037.8,3037.7,2.40239811]
[1764369301077,0.30585104,3037.8,3037.7,3.28623369]
[1764369301385,0.30585104,3037.8,3037.7,6.61111764]
[1764369302283,0.002,3037.9,3037.7,6.61111764]
[1764369302284,0.002,3037.9,3037.8,0.405504]
[1764369302484,0.3077584,3037.9,3037.8,1.468804]
[1764369303422,0.3077584,3037.9,3037.8,5.48625405]
[1764369303623,0.3077584,3037.9,3037.8,7.47898024]
[1764369303827,0.3077584,3037.9,3037.8,7.44606169]
[1764369304421,0.3077584,3037.9,3037.8,6.96856169]
[1764369304422,0.002,3037.9,3037.8,6.96856169]
[1764369304610,0.002,3037.9,3037.8,7.44606169]
[1764369306740,0.002,3037.9,3037.8,7.77406169]
[1764369309104,0.002,3037.9,3037.8,7.44606169]
[1764369309317,0.002,3037.9,3037.8,7.77406169]
[1764369310232,0.50172112,3039.8,3038.2,0.6866]
[1764369310526,0.76565544,3039.4,3038.9,0.405504]
[1764369310696,0.4606,3039.4,3039.3,0.1]
[1764369310893,0.4606,3039.3,3039.2,0.1]
[1764369311130,0.76570105,3039.3,3039.2,0.1]
[1764369311333,1.26110105,3039.3,3039.2,0.1]
[1764369311823,1.26110105,3039.3,3039.2,0.208]
[1764369312417,1.26110105,3039.3,3039.2,3.49833956]
[1764369314131,1.26110105,3039.3,3039.2,3.29033956]
[1764369314333,0.956,3039.3,3039.2,3.29033956]
[1764369314536,0.956,3039.3,3039.2,3.49833956]
[1764369316927,0.956,3039.3,3039.2,3.59833956]
[1764369317540,0.958,3039.3,3039.2,3.59833956]
[1764369318260,0.002,3039.3,3039.2,6.20567532]
[1764369318544,0.4543,3039.3,3039.2,4.97297132]
[1764369318749,0.928,3039.3,3039.2,5.18097132]
[1764369319113,0.4543,3039.3,3039.2,5.18097132]
[1764369320748,0.4543,3039.3,3039.2,5.65467132]
[1764369321419,0.928,3039.3,3039.2,3.76403956]
[1764369321622,0.928,3039.3,3039.2,3.49833956]
[1764369322020,1.23215289,3039.3,3038.6,0.1]
[1764369322230,0.77785289,3039.2,3038.7,3.29088096]
[1764369322412,0.30415289,3039.1,3038.7,3.29088096]
[1764369322612,0.6495,3038.8,3038.7,3.29088096]
[1764369323044,1.1232,3038.8,3038.6,3.49893912]
[1764369323255,1.1232,3038.8,3038.0,3.29156983]
[1764369323256,0.90933464,3038.7,3038.0,3.29163923]
[1764369323457,0.30413464,3038.6,3038.1,0.208]
[1764369323623,0.4737,3038.6,3038.1,0.208]
[1764369323822,0.4523,3038.2,3038.1,0.208]
[1764369324219,0.926,3038.2,3038.1,0.208]
[1764369324714,1.23009043,3038.2,3038.1,0.208]
[1764369324934,1.23009043,3038.2,3037.5,4.28115891]
[1764369325247,0.1972,3038.8,3037.5,0.308]
[1764369325248,0.3287,3037.6,3037.5,0.308]
[1764369325436,0.3287,3037.6,3037.5,1.03359411]
[1764369325747,0.3287,3037.6,3037.5,4.32577517]
[1764369325748,0.8024,3037.6,3037.5,4.32577517]
[1764369326639,0.8024,3037.6,3037.5,4.22577517]
[1764369327521,0.8024,3037.6,3037.5,0.93359411]
[1764369327741,0.8024,3037.6,3037.5,4.22577517]
[1764369328339,0.8024,3037.6,3037.5,3.29218106]
[1764369328816,0.8024,3037.6,3037.3,3.29239785]
[1764369329155,0.4737,3037.5,3037.4,0.72559411]
[1764369329647,0.926,3037.5,3037.4,0.72559411]
[1764369330656,0.926,3037.5,3037.4,4.01788356]
[1764369330657,0.4523,3037.5,3037.4,4.01788356]
[1764369330829,0.926,3037.5,3037.4,4.01788356]
[1764369331155,0.1972,3037.6,3037.5,0.1]
[1764369331454,1.1232,3037.6,3037.5,0.1]
[1764369332636,0.1972,3037.9,3037.5,6.58436212]
[1764369332841,0.1972,3037.9,3037.8,0.1]
[1764369333152,0.50093654,3037.9,3037.8,0.1]
[1764369333353,0.95323654,3037.9,3037.8,0.1]
[1764369333656,1.42693654,3037.9,3037.8,0.1]
[1764369334564,0.95323654,3037.9,3037.8,0.1]
[1764369334725,0.4523,3037.9,3037.8,3.29185594]
[1764369335060,0.4523,3037.9,3037.8,3.39185594]
[1764369335857,0.4884,3038.1,3038.0,0.1]
[1764369336044,0.4884,3038.1,3038.0,0.308]
[1764369336244,0.9519,3038.1,3038.0,0.308]
[1764369337755,0.9519,3038.1,3038.0,3.59963923]
[1764369339729,0.04113601,3038.7,3038.3,0.1]
[1764369339966,0.9519,3038.4,3038.3,0.1]
[1764369340128,3.4519,3038.4,3038.3,0.1]
[1764369340528,0.9519,3038.4,3038.0,7.98805639]
[1764369340868,0.4635,3038.4,3038.3,0.1]
[1764369341362,0.9519,3038.4,3038.3,0.1]
[1764369341834,0.9519,3038.4,3038.3,3.39131422]
[1764369342437,0.4635,3038.4,3038.3,3.39131422]
[1764369342831,0.9519,3038.4,3038.3,3.39131422]
[1764369343260,0.4635,3038.4,3038.3,4.5672267]
[1764369343657,0.4884,3038.7,3038.3,4.5672267]
[1764369343658,0.1972,3038.8,3038.6,0.1]
[1764369343835,1.03046577,3038.8,3038.6,3.39092173]
[1764369344035,0.76722381,3038.7,3038.6,3.39092173]
[1764369344234,1.25562381,3038.7,3038.6,3.39092173]
[1764369344534,0.9519,3038.7,3038.6,3.39092173]
[1764369345443,1.25573123,3038.7,3038.6,3.39092173]
[1764369346407,1.2558013,3038.7,3038.6,3.39092173]
[1764369347294,0.4635,3038.7,3038.6,4.07992297]
[1764369348153,0.9519,3038.7,3038.6,4.07992297]
[1764369351284,0.4635,3038.7,3038.6,4.07992297]
[1764369351464,0.76835021,3038.7,3038.6,4.07992297]
[1764369352390,0.30485021,3038.7,3038.6,4.07992297]
[1764369352744,0.30485021,3038.7,3038.6,9.52391728]
[1764369352944,0.30485021,3038.7,3038.6,9.62391728]
[1764369353248,0.30485021,3038.7,3038.6,9.52391728]
[1764369353447,0.30485021,3038.7,3038.6,9.62391728]
[1764369354178,0.30685021,3038.7,3038.6,9.62391728]
[1764369354361,0.002,3038.7,3038.6,9.62391728]
[1764369356883,0.002,3038.7,3038.6,4.54752297]
[1764369357184,0.002,3038.7,3038.6,9.62391728]
[1764369357847,0.002,3038.7,3038.6,10.34951139]
[1764369358041,0.002,3038.7,3038.6,10.83641139]
[1764369358565,0.002,3038.7,3038.6,10.34951139]
[1764369358907,0.002,3038.7,3038.6,5.27311708]
[1764369359047,0.002,3038.7,3038.6,5.79292697]
[1764369359551,0.002,3038.7,3038.6,6.19843097]
[1764369359769,0.002,3038.7,3038.6,6.68683097]
[1764369359956,0.002,3038.7,3038.6,6.65392108]
[1764369360488,0.002,3039.3,3039.2,0.505504]
[1764369360802,0.002,3039.3,3039.2,6.98309242]
[1764369360944,0.002,3039.3,3039.2,8.16830166]
[1764369361588,0.002,3039.3,3039.2,13.24469597]
[1764369361750,0.002,3039.3,3039.2,8.36600166]
[1764369361950,0.002,3039.3,3039.2,11.65634122]
[1764369364591,0.002,3039.3,3039.2,11.16944122]
[1764369365912,0.002,3039.3,3039.2,11.06944122]
[1764369366103,0.002,3039.3,3039.2,11.16944122]
[1764369369904,0.002,3039.3,3039.2,11.65354122]
[1764369371024,0.002,3039.3,3039.2,11.16944122]
[1764369371227,0.002,3039.3,3039.2,11.65354122]
[1764369375639,0.04110895,3040.7,3039.3,0.405504]
[1764369375851,0.48935038,3040.9,3039.9,5.07639431]
[1764369376031,0.48935038,3040.9,3040.1,0.1]
[1764369376032,0.4678,3040.7,3040.1,0.1]
[1764369376339,0.0411103,3040.6,3040.1,0.1]
[1764369376507,0.4686,3040.2,3040.1,0.1]
[1764369376707,0.4686,3040.2,3040.1,3.38936548]
[1764369376940,0.9364,3040.2,3040.1,3.38936548]
[1764369378245,0.9364,3040.2,3039.9,0.72559411]
[1764369378246,0.9364,3040.2,3039.9,0.1]
[1764369378452,0.9364,3040.2,3039.6,0.72559411]
[1764369378453,0.4686,3040.0,3039.5,4.27840288]
[1764369378633,0.50551706,3040.1,3039.7,3.38971911]
[1764369378807,0.6533,3039.8,3039.7,4.11531322]
[1764369379236,1.1211,3039.8,3039.7,3.38971911]
[1764369379839,1.1211,3039.8,3039.7,3.28971911]
[1764369380950,1.1211,3039.8,3039.6,3.49790211]
[1764369381153,1.1211,3039.8,3039.6,4.01549622]
[1764369381154,0.603,3039.7,3039.6,4.01549622]
[1764369381323,0.603,3039.7,3039.6,4.22349622]
[1764369381722,0.603,3039.7,3039.6,3.49790211]
[1764369385439,0.90823727,3039.7,3039.6,3.49790211]
[1764369386331,0.90825749,3039.7,3039.6,3.49790211]
[1764369388969,0.90825749,3039.7,3039.6,3.59790211]
[1764369389751,0.90825749,3039.7,3039.6,3.49790211]
[1764369396765,0.90825749,3039.7,3039.6,0.208]
[1764369397446,0.90825749,3039.7,3039.6,3.49790656]
[1764369397748,0.90825749,3039.7,3039.6,0.208]
[1764369398663,0.90825749,3039.7,3039.6,3.49790656]
[1764369399968,0.90825749,3039.7,3039.6,0.208]
[1764369400267,0.90825749,3039.7,3039.6,3.49790656]
[1764369400765,0.90825749,3039.7,3039.6,0.208]
[1764369401468,0.90825749,3039.7,3039.6,3.49790656]
[1764369402077,0.90825749,3039.7,3039.6,0.208]
[1764369402438,0.90825749,3039.7,3039.6,3.49790656]
[1764369402957,0.90825749,3039.7,3039.3,3.2911853]
[1764369403163,0.77515749,3039.6,3039.3,0.001]
[1764369403492,0.77515749,3039.5,3039.4,0.208]
[1764369404000,1.23645749,3039.5,3039.4,0.208]
[1764369410783,1.23645749,3039.5,3039.4,3.49812305]
[1764369411371,0.76655749,3039.5,3039.4,3.49812305]
[1764369411576,1.23645749,3039.5,3039.4,3.49812305]
[1764369415599,0.76655749,3039.5,3039.4,3.49812305]
[1764369416101,1.23645749,3039.5,3039.4,3.49812305]
[1764369420503,0.76655749,3039.5,3039.4,3.49812305]
[1764369420894,0.76655749,3039.5,3039.4,3.29012305]
[1764369421192,0.76655749,3039.5,3039.4,3.49812305]
[1764369423199,1.23645749,3039.5,3039.4,3.49812305]
[1764369424003,0.76655749,3039.5,3039.4,3.49812305]
[1764369424391,1.27758267,3039.5,3039.4,3.49812305]
[1764369424895,1.27758267,3039.5,3039.4,0.208]
[1764369425088,1.27758267,3039.5,3039.4,3.49812305]
[1764369425275,1.23645749,3039.5,3039.4,3.49812305]
[1764369425704,1.23645749,3039.5,3039.4,0.208]
[1764369425876,1.23645749,3039.5,3039.3,0.001]
[1764369426090,0.95558402,3039.4,3039.3,0.001]
[1764369426291,1.70914344,3039.4,3039.3,0.001]
[1764369426986,10.06828766,3039.4,3039.3,0.001]
[1764369427189,10.02716113,3039.4,3039.3,0.001]
[1764369427507,6.73703808,3039.4,3039.3,0.001]
[1764369427980,10.02716113,3039.4,3039.3,0.001]
[1764369429812,6.73703808,3039.4,3039.3,0.001]
[1764369430805,10.02716113,3039.4,3039.3,0.001]
[1764369433613,6.73703808,3039.4,3039.3,0.001]
[1764369433917,10.02716113,3039.4,3039.3,0.001]
[1764369437521,10.02828195,3039.4,3039.3,0.001]
[1764369437892,10.02828184,3039.4,3039.3,0.001]
[1764369440190,12.42828184,3039.4,3039.3,0.001]
[1764369440450,10.02828184,3039.4,3039.3,0.001]
[1764369441721,6.73815879,3039.4,3039.3,0.001]
[1764369441939,0.4466782,3039.4,3039.3,0.001]
[1764369442114,0.48780473,3039.4,3039.3,0.001]
[1764369443027,9.31334895,3039.4,3039.3,0.001]
[1764369443210,9.27222242,3039.4,3039.3,0.001]
[1764369444628,5.98209937,3039.4,3039.3,0.001]
[1764369444811,6.0232259,3039.4,3039.3,0.001]
[1764369445213,0.95420473,3039.4,3039.3,0.001]
[1764369446114,0.95620473,3039.4,3039.3,0.001]
[1764369447219,0.4486782,3039.4,3039.3,0.001]
[1764369447417,0.48980473,3039.4,3039.3,0.001]
[1764369447801,0.34950473,3039.4,3039.3,0.001]
[1764369449726,0.04312653,3039.4,3039.3,0.001]
[1764369449924,0.35023336,3039.4,3039.3,0.001]
[1764369450334,0.80883336,3039.4,3039.3,0.001]
[1764369451568,0.35023336,3039.4,3039.3,0.001]
[1764369451726,0.35023336,3039.4,3039.3,0.4587]
[1764369452130,0.35023336,3039.4,3039.3,0.001]
[1764369452646,0.35023336,3039.4,3039.3,3.8489313]
[1764369454143,0.30910683,3039.4,3039.3,3.8489313]
[1764369454845,0.30910683,3039.4,3039.3,3.7489313]
[1764369456150,0.30910683,3039.4,3039.3,4.2159313]
[1764369456347,0.30910683,3039.4,3039.3,5.06655778]
[1764369457148,0.30910683,3039.4,3039.3,5.79215189]
[1764369458252,0.30931075,3039.4,3039.3,5.79215189]
[1764369459230,0.30931075,3039.4,3039.3,6.19765589]
[1764369461752,0.30931075,3039.4,3039.3,6.09765589]
[1764369462054,0.30931075,3039.4,3039.3,6.40565589]
[1764369462744,0.30873047,3039.4,3039.3,6.40565589]
[1764369463325,0.002,3039.4,3039.3,6.40565589]
[1764369466360,0.002,3039.4,3039.3,5.63065589]
[1764369466661,0.002,3039.4,3039.3,6.30565589]
[1764369466828,0.002,3039.4,3039.3,6.40565589]
[1764369468647,0.002,3039.4,3039.3,5.53315189]
[1764369471454,0.002,3039.4,3039.3,5.43315189]
[1764369473736,0.002,3039.4,3039.3,5.4660542]
[1764369474232,0.002,3039.4,3039.3,5.43315189]
[1764369477174,0.30871341,3039.4,3039.3,5.43315189]
[1764369479081,0.30871341,3039.4,3039.3,5.4660542]
[1764369479474,0.30871341,3039.4,3039.3,5.43315189]
[1764369479647,0.30871341,3039.4,3039.3,5.53315189]
[1764369480289,0.30871341,3039.4,3039.3,5.32515189]
[1764369480462,1.28191341,3039.4,3039.3,0.001]
[1764369480962,4.57203646,3039.4,3039.3,0.001]
[1764369481355,9.64402278,3039.4,3039.3,0.001]
[1764369481554,9.9747034,3039.4,3039.3,0.001]
[1764369481746,20.97731489,3039.4,3039.3,0.001]
[1764369481949,18.24405889,3039.4,3039.3,0.001]
[1764369482558,17.89955789,3039.4,3039.3,0.001]
[1764369483479,17.21433589,3039.4,3039.3,0.001]
[1764369484293,14.43696989,3039.4,3039.3,0.001]
[1764369484459,16.88945389,3039.4,3039.3,0.001]
[1764369484851,14.43696989,3039.4,3039.3,0.001]
[1764369485658,16.91759389,3039.4,3039.3,0.001]
[1764369487710,14.43696989,3039.4,3039.3,0.001]
[1764369487859,16.91368889,3039.4,3039.3,0.001]
[1764369490604,17.01368889,3039.4,3039.3,0.001]
[1764369496361,23.35368889,3039.4,3039.3,0.001]
[1764369496565,23.25368889,3039.4,3039.3,0.001]
[1764369496766,23.35368889,3039.4,3039.3,0.001]
[1764369497063,23.48555173,3039.4,3039.3,0.001]
[1764369498895,15.58230295,3039.4,3039.3,0.001]
[1764369499489,15.91298357,3039.4,3039.3,0.001]
[1764369499685,15.58230295,3039.4,3039.3,0.001]
[1764369500069,15.91298357,3039.4,3039.3,0.001]
[1764369500298,13.67550884,3039.4,3039.3,0.001]
[1764369500501,10.87238579,3039.4,3039.3,0.001]
[1764369500670,10.38538579,3039.4,3039.3,0.001]
[1764369501009,2.70871341,3039.4,3039.3,0.9593]
[1764369501173,0.30871341,3039.4,3039.3,0.9593]
[1764369501901,0.30871341,3039.4,3039.3,1.0593]
[1764369502704,0.30871341,3039.4,3039.3,4.3495313]
[1764369503474,0.30871341,3039.4,3039.3,5.07512541]
[1764369503475,0.002,3039.4,3039.3,5.07512541]
[1764369503790,0.002,3039.4,3039.3,6.49142951]
[1764369504799,0.002,3039.4,3039.3,11.56341583]
[1764369505102,0.002,3039.4,3039.3,11.96891983]
[1764369508709,0.002,3039.4,3039.3,6.89693351]
[1764369509071,0.002,3039.4,3039.3,6.79693351]
[1764369509305,0.002,3039.4,3039.3,6.89693351]
[1764369511896,0.002,3039.4,3039.3,6.88000351]
[1764369514378,0.002,3039.4,3039.3,7.08800351]
[1764369516714,0.002,3039.4,3039.3,7.08900351]
[1764369517019,0.002,3039.4,3039.3,6.3634094]
[1764369517314,0.002,3039.4,3039.3,7.12190582]
[1764369517514,0.002,3039.4,3039.3,7.08900351]
[1764369518793,0.002,3039.4,3039.3,12.15781719]
[1764369519682,0.002,3039.4,3039.3,11.94981719]
[1764369519994,0.002,3039.4,3039.3,12.15781719]
[1764369520587,0.002,3039.4,3039.3,11.43222308]
[1764369521512,0.002,3039.4,3039.3,12.15781719]
[1764369521714,0.002,3039.4,3039.3,12.48581719]
[1764369522282,0.002,3039.4,3039.3,12.6175849]
[1764369529622,1e-08,3039.5,3039.4,2.51069811]
[1764369529928,1e-08,3039.5,3039.4,7.42451439]
[1764369530128,1e-08,3039.5,3039.4,7.39161316]
[1764369532306,1e-08,3039.5,3039.4,12.34042684]
[1764369533129,1e-08,3039.5,3039.4,5.46051505]
[1764369533328,0.002,3040.1,3039.4,5.46051505]
[1764369533329,0.16353714,3042.4,3041.6,0.17188268]
[1764369533634,0.4521,3041.7,3041.6,0.17188268]
[1764369533824,1.23495068,3041.7,3041.6,0.17188268]
[1764369534025,1.23495068,3041.7,3041.6,3.55962597]
[1764369535708,1.23495068,3041.7,3041.6,0.27188268]
[1764369535910,1.23495068,3041.7,3041.6,3.55962597]
[1764369536112,1.23495068,3041.7,3041.6,0.17188268]
[1764369536429,4.52258588,3041.7,3041.6,0.17188268]
[1764369536631,5.32158666,3041.7,3041.6,0.17188268]
[1764369538041,5.65226728,3041.7,3041.6,0.17188268]
[1764369538344,5.32158666,3041.7,3041.6,0.17188268]
[1764369538841,13.88603554,3041.7,3040.7,0.1]
[1764369539043,0.6321,3040.8,3040.7,0.1]
[1764369539237,0.93895068,3040.8,3040.7,0.1]
[1764369539438,1.41495068,3040.8,3040.7,0.1]
[1764369541665,1.41495068,3040.8,3040.7,3.38871641]
[1764369542738,1.41495068,3040.8,3040.7,3.28871641]
[1764369543466,1.41495068,3040.8,3040.4,6.67808182]
[1764369543760,0.30685068,3040.7,3040.6,0.1]
[1764369544115,1.23495068,3040.7,3040.6,0.1]
[1764369545716,0.30685068,3040.7,3040.6,3.89611281]
[1764369545927,0.30685068,3040.7,3040.6,5.67855759]
[1764369549647,0.30685068,3040.7,3040.6,6.4041517]
[1764369550361,0.4932,3041.5,3040.7,1.13109811]
[1764369550521,0.30655469,3041.4,3041.2,0.1]
[1764369550721,0.4932,3041.5,3041.2,0.1]
[1764369550722,0.79255469,3041.3,3041.2,3.38817572]
[1764369551124,1.28575469,3041.3,3041.2,3.38817572]
[1764369552557,0.79255469,3041.3,3041.2,3.28817572]
[1764369552762,1.28575469,3041.3,3041.2,3.28817572]
[1764369553695,1.28575469,3041.3,3040.6,0.72559411]
[1764369553974,0.99165469,3041.2,3041.1,0.1]
[1764369555144,0.99165469,3041.2,3041.1,3.38828384]
[1764369556360,0.99165469,3041.2,3041.1,0.1]
[1764369556562,0.99165469,3041.2,3041.1,3.38828384]
[1764369556968,0.99165469,3041.2,3041.1,0.1]
[1764369557170,0.99165469,3041.2,3040.7,0.82559411]
[1764369557371,0.51415469,3041.1,3040.7,0.82559411]
[1764369557565,0.6746,3040.8,3040.7,0.82559411]
[1764369557770,0.98115469,3040.8,3040.7,0.82559411]
[1764369557950,1.46035469,3040.8,3040.7,0.82559411]
[1764369558152,1.46035469,3040.8,3040.7,0.1]
[1764369558949,1.46035469,3040.8,3040.6,3.28879166]
[1764369559150,0.99015469,3040.7,3040.6,3.28879166]
[1764369559969,0.99015469,3040.7,3040.5,3.28989711]
[1764369560171,1.26465469,3040.6,3040.5,3.28989711]
[1764369561997,1.26465469,3040.6,3040.5,0.001]
[1764369563260,1.73927319,3040.6,3040.5,0.001]
[1764369565986,1.26465469,3040.6,3040.5,0.001]
[1764369580636,4.55347926,3040.6,3040.5,0.001]
[1764369580927,4.76147926,3040.6,3040.5,0.001]
[1764369583854,9.82872688,3040.6,3040.5,0.001]
[1764369584144,9.82872688,3040.6,3040.2,0.001]
[1764369584145,1.13109811,3040.5,3040.2,0.001]
[1764369584324,8.89417733,3040.3,3040.2,0.001]
[1764369584532,9.20073202,3040.3,3040.2,0.001]
[1764369584745,9.35847733,3040.3,3040.2,0.001]
[1764369584950,11.85847733,3040.3,3040.2,0.001]
[1764369585125,13.58462618,3040.3,3040.2,0.001]
[1764369585958,19.92462618,3040.3,3040.2,0.001]
[1764369586924,24.26608118,3040.3,3040.2,0.001]
[1764369587330,22.93239418,3040.3,3040.2,0.001]
[1764369587914,23.37478218,3040.3,3040.2,0.001]
[1764369588153,29.06762391,3040.3,3040.2,0.001]
[1764369588452,29.16762391,3040.3,3040.2,0.001]
[1764369588821,0.72559411,3040.0,3039.9,0.001]
[1764369589022,12.00165629,3040.0,3039.9,0.001]
[1764369589221,12.46595629,3040.0,3039.9,0.001]
[1764369589423,11.90028929,3040.0,3039.9,0.001]
[1764369590133,12.20391229,3040.0,3039.9,0.001]
[1764369590447,11.44694629,3040.0,3039.9,0.001]
[1764369590746,15.0433326,3040.0,3039.9,0.001]
[1764369591148,13.8756756,3040.0,3039.9,0.001]
[1764369592249,13.7790176,3040.0,3039.9,0.001]
[1764369592441,11.40357941,3040.0,3039.9,0.001]
[1764369592741,14.49014841,3040.0,3039.9,0.001]
[1764369593141,14.51444541,3040.0,3039.9,0.001]
[1764369593337,13.42673441,3040.0,3039.9,0.001]
[1764369594143,14.02051541,3040.0,3039.9,0.001]
[1764369594322,13.51758641,3040.0,3039.9,0.001]
[1764369595252,13.52706341,3040.0,3039.9,0.001]
[1764369596150,13.91973441,3040.0,3039.9,0.001]
[1764369596453,13.42673441,3040.0,3039.9,0.001]
[1764369597157,11.40357941,3040.0,3039.9,0.001]
[1764369597360,13.52514041,3040.0,3039.9,0.001]
[1764369598430,13.54502841,3040.0,3039.9,0.001]
[1764369598957,14.03694141,3040.0,3039.9,0.001]
[1764369599153,13.52536741,3040.0,3039.9,0.001]
[1764369599563,13.42536741,3040.0,3039.9,0.001]
[1764369600456,1.18017485,3040.0,3039.9,0.4601]
[1764369600659,9.53447221,3040.0,3039.9,0.001]
[1764369600977,6.24499853,3040.0,3039.9,0.001]
[1764369601127,0.47825091,3040.0,3039.9,0.4601]
[1764369601328,0.68625091,3040.0,3039.9,0.4601]
[1764369601868,0.47825091,3040.0,3039.9,0.4601]
[1764369602027,0.30635944,3040.0,3039.9,0.9443]
[1764369602384,0.30635944,3040.0,3039.9,4.33388189]
[1764369602535,0.30635944,3040.0,3039.9,5.09633876]
[1764369603161,0.208,3040.7,3039.9,8.28592065]
[1764369603356,0.30607363,3040.6,3040.3,0.1]
[1764369603556,0.30607363,3040.5,3040.3,0.1]
[1764369603742,0.30607363,3040.4,3040.3,0.1]
[1764369604340,0.30607363,3040.4,3040.3,4.23244909]